lending/lending_fUSD_20250114
["ID","MTS","AMOUNT","RATE_DAILY","PERIOD"]
[348876095,1736844637216,-500.0,9.987e-05,2]
[348876096,1736844637225,-500.0,9.987e-05,2]
[348876097,1736844637235,-675.78,9.987e-05,2]
[348876098,1736844637244,-4793.72,9.987e-05,2]
[348876099,1736844637254,-844.46,9.987e-05,2]
[348876100,1736844637263,-500.0,9.987e-05,2]
[348876101,1736844637272,-614.34,9.987e-05,2]
[348876102,1736844637281,-320.45087824,9.987e-05,2]
[348876103,1736844637290,-504.40791181,9.987e-05,2]
[348876104,1736844637299,-500.0,9.987e-05,2]
[348876105,1736844637309,-731.36,9.987e-05,2]
[348876106,1736844637318,-500.0,9.987e-05,2]
[348876107,1736844637328,-3697.13,9.987e-05,2]
[348876108,1736844637337,-500.0,9.987e-05,2]
[348876109,1736844637346,-165.21742692,9.987e-05,2]
[348876110,1736844637355,-500.0,9.987e-05,2]
[348876111,1736844637365,-500.0,9.987e-05,2]
[348876112,1736844637375,-500.0,9.987e-05,2]
[348876113,1736844637384,-500.0,9.987e-05,2]
[348876114,1736844637393,-500.0,9.987e-05,2]
[348876115,1736844637403,-904.49,9.987e-05,2]
[348876116,1736844637412,-2373.84,9.987e-05,2]
[348876117,1736844637422,-500.0,9.987e-05,2]
[348876118,1736844637431,-500.0,9.987e-05,2]
[348876119,1736844637440,-500.0,9.987e-05,2]
[348876120,1736844637450,-151.0,9.988e-05,2]
[348876121,1736844637459,-151.0,9.988e-05,2]
[348876122,1736844637469,-216.113578,9.988e-05,2]
[348876123,1736844637479,-495.11109088,9.988e-05,2]
[348876124,1736844637488,-500.0,9.988e-05,2]
[348876125,1736844637497,-500.0,9.988e-05,2]
[348876126,1736844637506,-502.58134506,9.988e-05,2]
[348876127,1736844637516,-501.1729428,9.988e-05,2]
[348876128,1736844637525,-501.64419943,9.988e-05,2]
[348876129,1736844637535,-500.82273157,9.988e-05,2]
[348876130,1736844637544,-501.04091577,9.988e-05,2]
[348876131,1736844637553,-208.810972,9.988e-05,2]
[348876132,1736844637563,-208.810972,9.988e-05,2]
[348876133,1736844637572,-502.2344061,9.988e-05,2]
[348876134,1736844637582,-208.810972,9.988e-05,2]
[348876135,1736844637592,-208.810972,9.988e-05,2]
[348876136,1736844637602,-500.89528466,9.988e-05,2]
[348876137,1736844637611,-501.99764449,9.988e-05,2]
[348876138,1736844637621,-501.57918154,9.988e-05,2]
[348876139,1736844637631,-500.0,9.988e-05,2]
[348876140,1736844637641,-501.48259695,9.988e-05,2]
[348876141,1736844637651,-501.7888769,9.988e-05,2]
[348876142,1736844637660,-501.93921451,9.988e-05,2]
[348876143,1736844637670,-502.01177791,9.988e-05,2]
[348876144,1736844637679,-501.05133612,9.988e-05,2]
[348876145,1736844637689,-151.0,9.988e-05,2]
[348876147,1736844637698,-151.0,9.988e-05,2]
[348876148,1736844637707,-151.0,9.988e-05,2]
[348876149,1736844637717,-151.0,9.988e-05,2]
[348876150,1736844637726,-196.090657,9.988e-05,2]
[348876151,1736844637736,-196.090657,9.988e-05,2]
[348876152,1736844637745,-196.090657,9.988e-05,2]
[348876153,1736844637755,-196.090657,9.988e-05,2]
[348876154,1736844637765,-151.0,9.988e-05,2]
[348876155,1736844637774,-218.0,9.988e-05,2]
[348876156,1736844637784,-1899.029,9.988e-05,2]
[348876158,1736844637798,-232.707,9.988e-05,2]
[348876160,1736844637808,-1025.627076,9.988e-05,2]
[348876161,1736844637817,-197.011963,9.988e-05,2]
[348876162,1736844637827,-197.011963,9.988e-05,2]
[348876163,1736844637837,-197.011963,9.988e-05,2]
[348876165,1736844637847,-197.011963,9.988e-05,2]
[348876167,1736844637857,-197.011963,9.988e-05,2]
[348876168,1736844637866,-197.011963,9.988e-05,2]
[348876169,1736844637876,-197.011963,9.988e-05,2]
[348876170,1736844637887,-197.011963,9.988e-05,2]
[348876171,1736844637897,-197.011963,9.988e-05,2]
[348876172,1736844637907,-197.011963,9.988e-05,2]
[348876173,1736844637916,-1136.575163,9.988e-05,2]
[348876174,1736844637926,-500.0,9.988e-05,2]
[348876175,1736844637936,-500.0,9.988e-05,2]
[348876176,1736844637945,-2139.46,9.988e-05,2]
[348876177,1736844637955,-613.51,9.988e-05,2]
[348876178,1736844637965,-1094.21,9.988e-05,2]
[348876179,1736844637974,-940.28,9.988e-05,2]
[348876180,1736844637983,-4399.28,9.988e-05,2]
[348876181,1736844637993,-500.0,9.988e-05,2]
[348876182,1736844638003,-500.0,9.988e-05,2]
[348876183,1736844638013,-500.0,9.988e-05,2]
[348876184,1736844638023,-1020.56,9.988e-05,2]
[348876185,1736844638034,-4068.28,9.988e-05,2]
[348876186,1736844638043,-500.0,9.988e-05,2]
[348876187,1736844638053,-500.0,9.988e-05,2]
[348876188,1736844638062,-500.0,9.988e-05,2]
[348876189,1736844638072,-500.0,9.988e-05,2]
[348876190,1736844638083,-627.65,9.988e-05,2]
[348876191,1736844638093,-500.0,9.988e-05,2]
[348876192,1736844638102,-500.0,9.988e-05,2]
[348876193,1736844638112,-500.0,9.988e-05,2]
[348876194,1736844638122,-500.0,9.988e-05,2]
[348876195,1736844638131,-1226.97,9.988e-05,2]
[348876196,1736844638141,-511.55392308,9.988e-05,2]
[348876197,1736844638151,-3806.42,9.988e-05,2]
[348876198,1736844638161,-500.0,9.988e-05,2]
[348876199,1736844638172,-1376.39,9.988e-05,2]
[348876200,1736844638182,-1145.46,9.988e-05,2]
[348876201,1736844638191,-2047.49315557,9.988e-05,2]
[348876202,1736844638216,-1137.21303064,9.988e-05,2]
[348876215,1736844638537,-202.86381379,9.988e-05,2]
[348876217,1736844638547,-500.0,9.988e-05,2]
[348876219,1736844638556,-139.89491088,9.988e-05,2]
[348876220,1736844638599,-749.74508912,9.988e-05,2]
[348876221,1736844638608,-1422.94,9.988e-05,2]
[348876222,1736844638619,-3096.17,9.988e-05,2]
[348876223,1736844638628,-1697.2,9.988e-05,2]
[348876224,1736844638638,-2021.41,9.988e-05,2]
[348876225,1736844638647,-728.54,9.988e-05,2]
[348876227,1736844638656,-2592.76,9.988e-05,2]
[348876229,1736844638665,-500.0,9.988e-05,2]
[348876231,1736844638675,-1751.58,9.988e-05,2]
[348876232,1736844638684,-1052.27,9.988e-05,2]
[348876233,1736844638693,-956.73693158,9.988e-05,2]
[348876234,1736844639568,-404.75814308,9.987e-05,2]
[348876235,1736844639633,-783.21185692,9.987e-05,2]
[348876236,1736844639643,-498.10306842,9.988e-05,2]
[348876237,1736844639654,-2154.54,9.988e-05,2]
[348876238,1736844639664,-4305.73,9.988e-05,2]
[348876239,1736844639673,-3516.85,9.988e-05,2]
[348876240,1736844639683,-1766.24,9.988e-05,2]
[348876241,1736844639692,-2114.17,9.988e-05,2]
[348876242,1736844639701,-1648.27,9.988e-05,2]
[348876243,1736844639710,-3327.15,9.988e-05,2]
[348876244,1736844639719,-3063.41348217,9.988e-05,2]
[348876245,1736844639739,-1181.59651783,9.988e-05,2]
[348876246,1736844639747,-500.0,9.988e-05,2]
[348876247,1736844639756,-3091.40672423,9.989e-05,2]
[348876248,1736844639768,-918.454597,9.989e-05,2]
[348876249,1736844639779,-653.894593,9.989e-05,2]
[348876251,1736844640194,-373.54013956,9.987e-05,2]
[348876252,1736844640287,-126.45986044,9.987e-05,2]
[348876253,1736844640296,-500.0,9.987e-05,2]
[348876254,1736844640306,-243481.80292373,9.989e-05,2]
[348876255,1736844640315,-151.0,9.989e-05,2]
[348876256,1736844640324,-208.810972,9.989e-05,2]
[348876257,1736844640334,-208.810972,9.989e-05,2]
[348876258,1736844640343,-151.0,9.989e-05,2]
[348876259,1736844640352,-279.490911,9.989e-05,2]
[348876260,1736844640362,-196.090657,9.989e-05,2]
[348876261,1736844640371,-196.090657,9.989e-05,2]
[348876262,1736844640381,-197.011963,9.989e-05,2]
[348876263,1736844640390,-197.011963,9.989e-05,2]
[348876264,1736844640400,-300.8304942,9.992e-05,2]
[348876265,1736844640410,-653.1456587,9.992e-05,2]
[348876266,1736844640419,-151.0,9.993e-05,2]
[348876267,1736844640428,-208.810972,9.993e-05,2]
[348876268,1736844640438,-208.810972,9.993e-05,2]
[348876269,1736844640447,-151.0,9.993e-05,2]
[348876270,1736844640457,-196.090657,9.993e-05,2]
[348876271,1736844640467,-196.090657,9.993e-05,2]
[348876272,1736844640476,-196.090657,9.993e-05,2]
[348876273,1736844640485,-196.090657,9.993e-05,2]
[348876274,1736844640495,-197.011963,9.993e-05,2]
[348876275,1736844640507,-197.011963,9.993e-05,2]
[348876276,1736844640517,-1486.75,9.993e-05,2]
[348876277,1736844640526,-1659.18,9.993e-05,2]
[348876278,1736844640536,-500.0,9.993e-05,2]
[348876279,1736844640547,-871.26,9.993e-05,2]
[348876280,1736844640556,-2261.84,9.993e-05,2]
[348876281,1736844640565,-1009.9,9.993e-05,2]
[348876282,1736844640575,-1248.72,9.993e-05,2]
[348876283,1736844640584,-1030.68,9.993e-05,2]
[348876284,1736844640594,-1663.21,9.993e-05,2]
[348876285,1736844640603,-985.24,9.993e-05,2]
[348876286,1736844640613,-2235.89,9.993e-05,2]
[348876287,1736844640622,-3705.36,9.993e-05,2]
[348876288,1736844640631,-500.0,9.993e-05,2]
[348876289,1736844640641,-2184.48935159,9.993e-05,2]
[348876290,1736844640654,-1705.5582732,9.993e-05,2]
[348876291,1736844640666,-1831.06121932,9.993e-05,2]
[348876292,1736844640677,-392.94,9.993e-05,2]
[348876293,1736844640689,-289.15000193,9.993e-05,2]
[348876297,1736844643560,-500.0,9.987e-05,2]
[348876298,1736844643570,-500.0,9.987e-05,2]
[348876299,1736844643579,-673.75,9.987e-05,2]
[348876300,1736844643672,-965.02382423,9.987e-05,2]
[348876301,1736844643730,-1607.64617577,9.987e-05,2]
[348876302,1736844643741,-494.95877802,9.987e-05,2]
[348876303,1736844643750,-625.13834654,9.993e-05,2]
[348876314,1736844646017,-500.0,9.986e-05,2]
[348876315,1736844646030,-500.0,9.987e-05,2]
[348876316,1736844646042,-1736.73280742,9.993e-05,2]
[348876317,1736844646054,-1266.06,9.993e-05,2]
[348876318,1736844646066,-681.43,9.993e-05,2]
[348876319,1736844646078,-906.93,9.993e-05,2]
[348876320,1736844646090,-1552.35,9.993e-05,2]
[348876321,1736844646103,-2862.54,9.993e-05,2]
[348876322,1736844646115,-500.0,9.993e-05,2]
[348876323,1736844646127,-151.0,9.994e-05,2]
[348876324,1736844646139,-151.0,9.994e-05,2]
[348876325,1736844646150,-151.0,9.994e-05,2]
[348876326,1736844646162,-151.0,9.994e-05,2]
[348876327,1736844646174,-151.0,9.994e-05,2]
[348876328,1736844646185,-151.0,9.994e-05,2]
[348876329,1736844646197,-208.810972,9.994e-05,2]
[348876330,1736844646209,-208.810972,9.994e-05,2]
[348876331,1736844646222,-208.810972,9.994e-05,2]
[348876332,1736844646234,-208.810972,9.994e-05,2]
[348876333,1736844646245,-208.810972,9.994e-05,2]
[348876334,1736844646258,-208.810972,9.994e-05,2]
[348876335,1736844646269,-151.0,9.994e-05,2]
[348876336,1736844646280,-151.0,9.994e-05,2]
[348876337,1736844646292,-196.090657,9.994e-05,2]
[348876338,1736844646303,-196.090657,9.994e-05,2]
[348876339,1736844646316,-197.011963,9.994e-05,2]
[348876340,1736844646329,-197.011963,9.994e-05,2]
[348876341,1736844646341,-1416.34,9.994e-05,2]
[348876342,1736844646354,-1871.56,9.994e-05,2]
[348876343,1736844646366,-500.0,9.994e-05,2]
[348876344,1736844646378,-1000.0,9.994e-05,2]
[348876345,1736844646389,-652.7088766,9.994e-05,2]
[348876346,1736844646403,-292.80640999,9.994e-05,2]
[348876347,1736844646431,-84.10471341,9.994e-05,2]
[348876348,1736844646442,-500.0,9.994e-05,2]
[348876349,1736844646455,-2494.46,9.994e-05,2]
[348876350,1736844646467,-2316.32,9.994e-05,2]
[348876351,1736844646479,-151.0,9.995e-05,2]
[348876352,1736844646491,-186.572699,9.995e-05,2]
[348876353,1736844646503,-151.0,9.995e-05,2]
[348876354,1736844646517,-196.090657,9.995e-05,2]
[348876355,1736844646530,-196.090657,9.995e-05,2]
[348876356,1736844646543,-2016.0,9.998e-05,2]
[348876357,1736844646555,-1268.0,9.998e-05,2]
[348876358,1736844646567,-150.716,9.998e-05,2]
[348876359,1736844646579,-635.0,9.998e-05,2]
[348876360,1736844646591,-568.789,9.998e-05,2]
[348876361,1736844646604,-1862.0,9.998e-05,2]
[348876362,1736844646616,-1261.127,9.998e-05,2]
[348876363,1736844646627,-906.0,9.998e-05,2]
[348876364,1736844646639,-820.0,9.998e-05,2]
[348876365,1736844646651,-2956.412,9.998e-05,2]
[348876366,1736844646664,-3979.0,9.998e-05,2]
[348876367,1736844646676,-539.243,9.998e-05,2]
[348876368,1736844646687,-250.0,9.998e-05,2]
[348876369,1736844646700,-9631.0,9.998e-05,2]
[348876370,1736844646712,-162.938,9.998e-05,2]
[348876371,1736844646724,-1174.0,9.998e-05,2]
[348876372,1736844646736,-295.048,9.998e-05,2]
[348876373,1736844646748,-3897.0,9.998e-05,2]
[348876374,1736844646761,-168.0,9.998e-05,2]
[348876375,1736844646774,-197.011963,9.998e-05,2]
[348876376,1736844646786,-197.011961,9.998e-05,2]
[348876377,1736844646800,-1422.56505477,9.999e-05,3]
[348876378,1736844646812,-151.0,9.999e-05,2]
[348876379,1736844646823,-208.810972,9.999e-05,2]
[348876380,1736844646836,-208.810972,9.999e-05,2]
[348876381,1736844646847,-151.0,9.999e-05,2]
[348876382,1736844646860,-196.090657,9.999e-05,2]
[348876383,1736844646876,-196.090657,9.999e-05,2]
[348876384,1736844646888,-500.0,9.999e-05,2]
[348876385,1736844646901,-53568.04888249,0.0001,2]
[348876386,1736844646916,-19146.47322462,0.0001,2]
[348876387,1736844646931,-36519.99999815,0.0001,2]
[348876388,1736844647006,-18763.39698005,0.0001,2]
[348876397,1736844811319,150.0,0.00019967,120]
[348876398,1736844817345,150.0,0.00023,120]
[348876399,1736844840827,151.01417,0.0002,120]
[348876401,1736844872413,-1214.37,9.172e-05,2]
[348876402,1736844872438,-421.36,9.18e-05,2]
[348876403,1736845006910,1422.57,9.01e-05,2]
[348876404,1736845109199,524.84,9.02e-05,2]
[348876405,1736845193492,2000.0,9.154e-05,2]
[348876406,1736845228828,926.71,8.219e-05,2]
[348876408,1736845465577,185.0,0.00023,120]
[348876410,1736845505713,150.0,9e-05,2]
[348876412,1736845506034,150.0,9.02e-05,2]
[348876413,1736845506362,150.0,9.041e-05,2]
[348876414,1736845506683,150.0,9.061e-05,2]
[348876415,1736845507008,150.0,9.082e-05,2]
[348876416,1736845507768,150.0,9.102e-05,2]
[348876417,1736845508319,150.0,9.122e-05,2]
[348876418,1736845508454,150.0,9.143e-05,2]
[348876419,1736845508793,150.0,9.163e-05,2]
[348876420,1736845509126,150.0,9.184e-05,2]
[348876421,1736845518547,4995.93980222,0.0002,30]
[348876422,1736845525915,150.0,9e-05,2]
[348876423,1736845526249,150.0,9.038e-05,2]
[348876424,1736845526566,7.41,9.077e-05,2]
[348876446,1736845832210,-250.0,8.599e-05,2]
[348876447,1736845832220,-645.5805985,8.603e-05,2]
[348876448,1736845832229,-186.3094015,8.603e-05,2]
[348876449,1736845832487,-268.1705985,8.603e-05,2]
[348876450,1736845832507,-340.38047614,8.705e-05,2]
[348876451,1736845832523,-659.61952386,8.705e-05,2]
[348876452,1736845832534,-150.0,9e-05,2]
[348876453,1736845832545,-186.98192032,9e-05,2]
[348876454,1736845832558,-150.0,9e-05,2]
[348876455,1736845832567,-150.0,9e-05,2]
[348876456,1736845832577,-150.0,9.042e-05,2]
[348876457,1736845832587,-142.59,9.077e-05,2]
[348876458,1736845832596,-150.0,9.083e-05,2]
[348876459,1736845832606,-150.0,9.115e-05,2]
[348876460,1736845832615,-110.80855582,9.125e-05,2]
[348876461,1736845832670,-39.19144418,9.125e-05,2]
[348876462,1736845832679,-150.0,9.154e-05,2]
[348876463,1736845832689,-150.0,9.167e-05,2]
[348876464,1736845832699,-150.0,9.192e-05,2]
[348876465,1736845832709,-150.0,9.204e-05,2]
[348876466,1736845832718,-150.0,9.208e-05,2]
[348876467,1736845832728,-150.0,9.224e-05,2]
[348876468,1736845832738,-150.0,9.231e-05,2]
[348876469,1736845832747,-150.0,9.245e-05,2]
[348876470,1736845832757,-150.0,9.25e-05,2]
[348876471,1736845832766,-150.0,9.25e-05,2]
[348876472,1736845832776,-150.0,9.265e-05,2]
[348876473,1736845832784,-150.0,9.269e-05,2]
[348876474,1736845832794,-150.0,9.286e-05,2]
[348876475,1736845832804,-150.0,9.292e-05,2]
[348876476,1736845832813,-150.0,9.306e-05,2]
[348876477,1736845832823,-150.0,9.308e-05,2]
[348876478,1736845832832,-300.0,9.308e-05,2]
[348876479,1736845832841,-150.0,9.327e-05,2]
[348876480,1736845832850,-4.55348271,9.327e-05,2]
[348876521,1736845838093,-295.44651729,9.327e-05,2]
[348876522,1736845838103,-150.0,9.327e-05,2]
[348876523,1736845838113,-150.0,9.333e-05,2]
[348876524,1736845838122,-150.0,9.346e-05,2]
[348876525,1736845838131,-150.0,9.347e-05,2]
[348876526,1736845838140,-150.0,9.367e-05,2]
[348876527,1736845838150,-150.0,9.375e-05,2]
[348876528,1736845838160,-150.0,9.385e-05,2]
[348876529,1736845838169,-150.0,9.388e-05,2]
[348876530,1736845838178,-150.0,9.408e-05,2]
[348876531,1736845838187,-150.0,9.417e-05,2]
[348876532,1736845838196,-0.46740288,9.423e-05,2]
[348876533,1736845838207,-149.53259712,9.423e-05,2]
[348876534,1736845838216,-150.0,9.429e-05,2]
[348876535,1736845838225,-150.0,9.449e-05,2]
[348876536,1736845838234,-150.0,9.458e-05,2]
[348876537,1736845838244,-150.0,9.462e-05,2]
[348876538,1736845838255,-150.0,9.469e-05,2]
[348876539,1736845838264,-150.0,9.49e-05,2]
[348876540,1736845838273,-100.51037838,9.5e-05,2]
[348876541,1736845838293,-49.48962162,9.5e-05,2]
[348876542,1736845838302,-150.0,9.5e-05,2]
[348876543,1736845838311,-150.0,9.5e-05,2]
[348876544,1736845838321,-150.0,9.5e-05,2]
[348876545,1736845838332,-156.112,9.5e-05,2]
[348876546,1736845838342,-150.0,9.51e-05,2]
[348876547,1736845838351,-150.0,9.531e-05,2]
[348876548,1736845838361,-150.0,9.538e-05,2]
[348876549,1736845838370,-150.0,9.542e-05,2]
[348876550,1736845838379,-150.0,9.551e-05,2]
[348876551,1736845838390,-150.0,9.571e-05,2]
[348876552,1736845838400,-302.74,9.574e-05,2]
[348876553,1736845838411,-143.63961837,9.574e-05,2]
[348876554,1736845838448,-6.36038163,9.574e-05,2]
[348876555,1736845838458,-1959.04,9.574e-05,2]
[348876556,1736845838467,-150.0,9.577e-05,2]
[348876557,1736845838477,-150.0,9.583e-05,2]
[348876559,1736845838486,-150.0,9.592e-05,2]
[348876561,1736845838496,-150.0,9.612e-05,2]
[348876562,1736845838505,-150.0,9.615e-05,2]
[348876563,1736845838514,-150.0,9.625e-05,2]
[348876564,1736845838524,-150.0,9.633e-05,2]
[348876565,1736845838534,-150.0,9.653e-05,2]
[348876566,1736845838543,-150.0,9.654e-05,2]
[348876567,1736845838552,-150.0,9.667e-05,2]
[348876568,1736845838561,-150.0,9.673e-05,2]
[348876569,1736845838571,-454.48,9.679e-05,2]
[348876571,1736845838580,-150.0,9.692e-05,2]
[348876573,1736845838590,-150.0,9.694e-05,2]
[348876574,1736845838601,-150.0,9.708e-05,2]
[348876575,1736845838612,-150.0,9.714e-05,2]
[348876576,1736845838621,-150.0,9.726e-05,2]
[348876577,1736845838632,-302.33,9.726e-05,2]
[348876578,1736845838643,-150.0,9.731e-05,2]
[348876579,1736845838653,-150.0,9.735e-05,2]
[348876580,1736845838664,-150.0,9.75e-05,2]
[348876581,1736845838673,-150.0,9.75e-05,2]
[348876582,1736845838682,-150.0,9.755e-05,2]
[348876583,1736845838691,-150.0,9.769e-05,2]
[348876584,1736845838700,-150.0,9.776e-05,2]
[348876585,1736845838710,-150.0,9.792e-05,2]
[348876586,1736845838721,-1000.0,9.794e-05,2]
[348876587,1736845838730,-150.0,9.796e-05,2]
[348876588,1736845838739,-150.0,9.808e-05,2]
[348876589,1736845838748,-150.0,9.816e-05,2]
[348876590,1736845838759,-150.0,9.821e-05,2]
[348876591,1736845838768,-635.0,9.821e-05,2]
[348876592,1736845838778,-566.0,9.821e-05,2]
[348876593,1736845838787,-1862.0,9.821e-05,2]
[348876594,1736845838796,-2945.0,9.821e-05,2]
[348876595,1736845838806,-1259.0,9.821e-05,2]
[348876596,1736845838815,-906.0,9.821e-05,2]
[348876597,1736845838824,-820.0,9.821e-05,2]
[348876598,1736845838833,-537.0,9.821e-05,2]
[348876599,1736845838842,-3979.0,9.821e-05,2]
[348876600,1736845838851,-150.0,9.833e-05,2]
[348876601,1736845838862,-150.0,9.837e-05,2]
[348876602,1736845838871,-150.0,9.846e-05,2]
[348876603,1736845838880,-150.0,9.857e-05,2]
[348876604,1736845838889,-150.0,9.875e-05,2]
[348876605,1736845838899,-150.0,9.878e-05,2]
[348876606,1736845838908,-150.0,9.885e-05,2]
[348876607,1736845838917,-150.0,9.898e-05,2]
[348876608,1736845838926,-150.0,9.917e-05,2]
[348876609,1736845838936,-154.952,9.917e-05,2]
[348876610,1736845838945,-7630.77764575,9.917e-05,2]
[348876611,1736845838957,-2000.22235425,9.917e-05,2]
[348876612,1736845838966,-1880.31855276,9.917e-05,2]
[348876619,1736845840057,-355.72425126,9.917e-05,2]
[348876620,1736845840068,-528.47647468,9.917e-05,2]
[348876621,1736845840167,-250.7872979,9.917e-05,2]
[348876622,1736845840178,-798.4135,9.917e-05,2]
[348876623,1736845840190,-83.2799234,9.917e-05,2]
[348876624,1736845840199,-366.98691442,9.917e-05,2]
[348876625,1736845840210,-798.01308558,9.917e-05,2]
[348876626,1736845840220,-150.0,9.918e-05,2]
[348876627,1736845840230,-150.0,9.923e-05,2]
[348876628,1736845840241,-150.0,9.939e-05,2]
[348876629,1736845840255,-150.0,9.958e-05,2]
[348876630,1736845840264,-46.88132306,9.959e-05,2]
[348876631,1736845840276,-103.11867694,9.959e-05,2]
[348876632,1736845840286,-150.0,9.962e-05,2]
[348876633,1736845840295,-150.0,9.98e-05,2]
[348876634,1736845840305,-500.0,9.986e-05,2]
[348876635,1736845840314,-833.22,9.986e-05,2]
[348876636,1736845840324,-500.0,9.986e-05,2]
[348876637,1736845840334,-500.0,9.986e-05,2]
[348876638,1736845840343,-674.7,9.986e-05,2]
[348876639,1736845840352,-500.0,9.986e-05,2]
[348876640,1736845840362,-500.0,9.986e-05,2]
[348876641,1736845840372,-500.0,9.986e-05,2]
[348876642,1736845840381,-500.0,9.986e-05,2]
[348876643,1736845840390,-500.0,9.986e-05,2]
[348876644,1736845840399,-500.0,9.986e-05,2]
[348876645,1736845840411,-500.0,9.986e-05,2]
[348876646,1736845840421,-500.0,9.986e-05,2]
[348876647,1736845840431,-500.0,9.986e-05,2]
[348876648,1736845840440,-794.42,9.986e-05,2]
[348876649,1736845840450,-3577.22,9.986e-05,2]
[348876650,1736845840459,-500.0,9.986e-05,2]
[348876651,1736845840468,-500.0,9.986e-05,2]
[348876652,1736845840478,-900.43,9.986e-05,2]
[348876653,1736845840487,-2148.2,9.986e-05,2]
[348876654,1736845840496,-500.0,9.986e-05,2]
[348876655,1736845840506,-609.58,9.986e-05,2]
[348876656,1736845840515,-548.65,9.986e-05,2]
[348876657,1736845840525,-665.99,9.986e-05,2]
[348876658,1736845840534,-4311.87,9.986e-05,2]
[348876659,1736845840543,-500.0,9.986e-05,2]
[348876660,1736845840553,-500.0,9.986e-05,2]
[348876661,1736845840565,-500.0,9.986e-05,2]
[348876662,1736845840575,-558.91,9.986e-05,2]
[348876663,1736845840584,-500.0,9.986e-05,2]
[348876664,1736845840593,-500.0,9.986e-05,2]
[348876665,1736845840603,-4123.55,9.986e-05,2]
[348876666,1736845840612,-235.15100063,9.986e-05,2]
[348876668,1736845840622,-500.0,9.986e-05,2]
[348876670,1736845840631,-500.0,9.986e-05,2]
[348876672,1736845840640,-500.0,9.986e-05,2]
[348876674,1736845840649,-500.0,9.986e-05,2]
[348876676,1736845840659,-500.0,9.986e-05,2]
[348876677,1736845840669,-500.0,9.986e-05,2]
[348876680,1736845840679,-500.0,9.986e-05,2]
[348876681,1736845840688,-500.0,9.986e-05,2]
[348876683,1736845840697,-500.0,9.986e-05,2]
[348876686,1736845840707,-500.0,9.986e-05,2]
[348876687,1736845840717,-2186.76,9.986e-05,2]
[348876690,1736845840727,-500.0,9.986e-05,2]
[348876692,1736845840737,-788.33,9.986e-05,2]
[348876693,1736845840746,-990.25,9.986e-05,2]
[348876695,1736845840755,-1395.18,9.986e-05,2]
[348876697,1736845840764,-766.25,9.986e-05,2]
[348876699,1736845840774,-500.0,9.986e-05,2]
[348876701,1736845840783,-500.0,9.986e-05,2]
[348876703,1736845840792,-500.0,9.986e-05,2]
[348876706,1736845840802,-500.0,9.986e-05,2]
[348876707,1736845840811,-500.0,9.986e-05,2]
[348876709,1736845840820,-733.69,9.986e-05,2]
[348876711,1736845840830,-500.0,9.986e-05,2]
[348876713,1736845840839,-500.0,9.986e-05,2]
[348876715,1736845840848,-500.0,9.986e-05,2]
[348876717,1736845840857,-500.0,9.986e-05,2]
[348876719,1736845840868,-1086.91,9.986e-05,2]
[348876721,1736845840877,-1016.97,9.986e-05,2]
[348876723,1736845840886,-500.0,9.986e-05,2]
[348876725,1736845840895,-415.70310438,9.986e-05,2]
[348876727,1736845840904,-500.0,9.986e-05,2]
[348876729,1736845840915,-500.0,9.986e-05,2]
[348876731,1736845840924,-500.0,9.986e-05,2]
[348876733,1736845840933,-500.0,9.986e-05,2]
[348876735,1736845840943,-500.0,9.986e-05,2]
[348876737,1736845840952,-500.0,9.986e-05,2]
[348876739,1736845840961,-737.52,9.986e-05,2]
[348876742,1736845840971,-1411.23,9.986e-05,2]
[348876744,1736845840980,-500.0,9.986e-05,2]
[348876746,1736845840989,-500.0,9.986e-05,2]
[348876748,1736845840998,-1138.37,9.986e-05,2]
[348876750,1736845841007,-500.0,9.986e-05,2]
[348876752,1736845841016,-500.0,9.986e-05,2]
[348876754,1736845841025,-688.72,9.986e-05,2]
[348876756,1736845841035,-500.0,9.986e-05,2]
[348876758,1736845841044,-947.96,9.986e-05,2]
[348876759,1736845841053,-500.0,9.986e-05,2]